[Event "Early-Titled-Tuesday-Blitz-May-14-2024"]
[Site "Chess.com"]
[Date "2024.05.14"]
[Round "8"]
[White "Chernov_Mikhail"]
[Black "Renatoforf"]
[Result "1/2-1/2"]
[WhiteElo "2347"]
[BlackElo "1965"]
[TimeControl "180+1"]
[EndTime "9:30:08 PDT"]
[Termination "Game drawn by repetition"]

1. e4 {[%clk 0:02:58]} 1... c5 {[%clk 0:02:59.5]} 2. Nf3 {[%clk 0:02:45.9]} 2...
d6 {[%clk 0:02:59.8]} 3. d4 {[%clk 0:02:45.9]} 3... cxd4 {[%clk 0:02:59.2]} 4.
Nxd4 {[%clk 0:02:46.8]} 4... Nf6 {[%clk 0:02:58.5]} 5. Nc3 {[%clk 0:02:47.4]}
5... g6 {[%clk 0:02:58.8]} 6. g4 {[%clk 0:02:47.7]} 6... Bxg4 {[%clk 0:02:54.8]}
7. f3 {[%clk 0:02:48.3]} 7... Bd7 {[%clk 0:02:53.8]} 8. Be3 {[%clk 0:02:44.4]}
8... Bg7 {[%clk 0:02:52.3]} 9. Bc4 {[%clk 0:02:42.8]} 9... Nc6 {[%clk
0:02:49.6]} 10. Qd2 {[%clk 0:02:42.9]} 10... O-O {[%clk 0:02:47.6]} 11. O-O-O
{[%clk 0:02:41.6]} 11... Rc8 {[%clk 0:02:46.9]} 12. Bb3 {[%clk 0:02:39.2]} 12...
Ne5 {[%clk 0:02:45.5]} 13. h4 {[%clk 0:02:33.5]} 13... Qa5 {[%clk 0:02:35.4]}
14. Kb1 {[%clk 0:02:26.2]} 14... Rfe8 {[%clk 0:02:23.6]} 15. Rdg1 {[%clk
0:02:20.5]} 15... Rxc3 {[%clk 0:02:13.8]} 16. bxc3 {[%clk 0:02:16.4]} 16... Nxf3
{[%clk 0:02:11.5]} 17. Nxf3 {[%clk 0:01:50.3]} 17... Nxe4 {[%clk 0:02:10.7]} 18.
Qd3 {[%clk 0:01:46.4]} 18... Nxc3+ {[%clk 0:02:06.5]} 19. Kc1 {[%clk 0:01:43]}
19... Bf5 {[%clk 0:01:56.3]} 20. Qc4 {[%clk 0:01:39.5]} 20... Be6 {[%clk
0:01:47.2]} 21. Qd3 {[%clk 0:01:36.3]} 21... Bf5 {[%clk 0:01:45.2]} 22. Qc4
{[%clk 0:01:27.3]} 22... d5 {[%clk 0:01:39.6]} 23. Qf1 {[%clk 0:00:51.7]} 23...
Nxa2+ {[%clk 0:01:12.8]} 24. Kd1 {[%clk 0:00:22.7]} 24... Nc3+ {[%clk
0:01:04.9]} 25. Ke1 {[%clk 0:00:22.6]} 25... Ne4+ {[%clk 0:00:32.3]} 26. Ke2
{[%clk 0:00:21.1]} 26... Qb5+ {[%clk 0:00:30.9]} 27. Kd1 {[%clk 0:00:15.4]}
27... Nc3+ {[%clk 0:00:29.4]} 28. Kd2 {[%clk 0:00:13.1]} 28... Ne4+ {[%clk
0:00:28.2]} 29. Kd1 {[%clk 0:00:13]} 29... Qa5 {[%clk 0:00:23.6]} 30. Ke2 {[%clk
0:00:04.6]} 30... Qb5+ {[%clk 0:00:21.2]} 31. Kd1 {[%clk 0:00:04.7]} 1/2-1/2

[Event "Early-Titled-Tuesday-Blitz-May-14-2024"]
[Site "Chess.com"]
[Date "2024.05.14"]
[Round "8"]
[White "nrvisakh"]
[Black "jumpingknight20"]
[Result "1-0"]
[WhiteElo "2927"]
[BlackElo "2752"]
[TimeControl "180+1"]
[EndTime "9:30:16 PDT"]
[Termination "nrvisakh won by resignation"]

1. e4 {[%clk 0:02:57.9]} 1... c5 {[%clk 0:02:58.9]} 2. Nf3 {[%clk 0:02:56.8]}
2... d6 {[%clk 0:02:59.1]} 3. b4 {[%clk 0:02:55.9]} 3... cxb4 {[%clk 0:02:52]}
4. d4 {[%clk 0:02:55.2]} 4... d5 {[%clk 0:02:50.9]} 5. Bd3 {[%clk 0:02:47.9]}
5... dxe4 {[%clk 0:02:47.1]} 6. Bxe4 {[%clk 0:02:47.1]} 6... Nf6 {[%clk
0:02:47.7]} 7. Bd3 {[%clk 0:02:46.8]} 7... g6 {[%clk 0:02:48]} 8. a3 {[%clk
0:02:44.5]} 8... Nc6 {[%clk 0:02:39.7]} 9. O-O {[%clk 0:02:43.1]} 9... Bg7
{[%clk 0:02:39.1]} 10. Bb5 {[%clk 0:02:34.8]} 10... bxa3 {[%clk 0:02:23.7]} 11.
Ne5 {[%clk 0:02:27.1]} 11... Qb6 {[%clk 0:01:20.1]} 12. Bxc6+ {[%clk 0:01:52]}
12... bxc6 {[%clk 0:01:21]} 13. Bxa3 {[%clk 0:01:51.8]} 13... O-O {[%clk
0:01:09.7]} 14. Bxe7 {[%clk 0:01:49.8]} 14... Re8 {[%clk 0:01:09.7]} 15. Bc5
{[%clk 0:01:49.9]} 15... Qc7 {[%clk 0:01:08.6]} 16. Nd2 {[%clk 0:01:47.3]} 16...
Bf5 {[%clk 0:01:01.4]} 17. Qf3 {[%clk 0:01:37.5]} 17... Bxc2 {[%clk 0:00:44.3]}
18. Rfc1 {[%clk 0:01:35.5]} 18... Be4 {[%clk 0:00:39.4]} 19. Nxe4 {[%clk
0:01:33.3]} 19... Nxe4 {[%clk 0:00:38.2]} 20. Qxe4 {[%clk 0:01:32.6]} 20... f6
{[%clk 0:00:21.6]} 21. Qxc6 {[%clk 0:01:31.4]} 21... Qxc6 {[%clk 0:00:20.7]} 22.
Nxc6 {[%clk 0:01:30.6]} 22... Kf7 {[%clk 0:00:16.9]} 23. d5 {[%clk 0:01:26.5]}
23... Rec8 {[%clk 0:00:15]} 24. Rab1 {[%clk 0:01:25.1]} 24... Rc7 {[%clk
0:00:14.3]} 25. Bxa7 {[%clk 0:01:21.2]} 25... Rd7 {[%clk 0:00:12.9]} 26. Be3
{[%clk 0:01:15.8]} 26... Re8 {[%clk 0:00:05]} 27. h3 {[%clk 0:01:14]} 27... Rxd5
{[%clk 0:00:03.7]} 28. Rb7+ {[%clk 0:01:13.1]} 28... Kf8 {[%clk 0:00:04.3]} 29.
Bc5+ {[%clk 0:01:11.6]} 29... Rxc5 {[%clk 0:00:04.9]} 30. Rxc5 {[%clk
0:01:10.6]} 30... f5 {[%clk 0:00:05.8]} 31. g3 {[%clk 0:01:06.5]} 31... h5
{[%clk 0:00:04.2]} 32. Nb8 {[%clk 0:01:02.5]} 32... Bd4 {[%clk 0:00:01.5]} 33.
Rd5 {[%clk 0:00:58.6]} 33... Bc3 {[%clk 0:00:01.2]} 34. Nd7+ {[%clk 0:00:55.8]}
34... Kg8 {[%clk 0:00:01.5]} 35. Rd6 {[%clk 0:00:55.6]} 35... Bg7 {[%clk
0:00:02.1]} 36. Rxg6 {[%clk 0:00:53.6]} 36... Kh7 {[%clk 0:00:02.4]} 37. Nf6+
{[%clk 0:00:50.9]} 1-0

[Event "Early-Titled-Tuesday-Blitz-May-14-2024"]
[Site "Chess.com"]
[Date "2024.05.14"]
[Round "8"]
[White "luggevoila"]
[Black "Abund"]
[Result "0-1"]
[WhiteElo "2349"]
[BlackElo "2785"]
[TimeControl "180+1"]
[EndTime "9:30:17 PDT"]
[Termination "Abund won by resignation"]

1. e4 {[%clk 0:02:56.6]} 1... g6 {[%clk 0:02:59.6]} 2. d4 {[%clk 0:02:56.4]}
2... Bg7 {[%clk 0:03:00.3]} 3. Nc3 {[%clk 0:02:56.8]} 3... a6 {[%clk 0:02:59.7]}
4. Be3 {[%clk 0:02:55.7]} 4... b5 {[%clk 0:02:59.8]} 5. g4 {[%clk 0:02:56.2]}
5... Bb7 {[%clk 0:02:58.1]} 6. Bg2 {[%clk 0:02:56.3]} 6... d6 {[%clk 0:02:55.3]}
7. h4 {[%clk 0:02:56.1]} 7... h6 {[%clk 0:02:47.2]} 8. Qd2 {[%clk 0:02:51.4]}
8... Nd7 {[%clk 0:02:43.9]} 9. a4 {[%clk 0:02:47.3]} 9... b4 {[%clk 0:02:37.2]}
10. Nce2 {[%clk 0:02:46.9]} 10... a5 {[%clk 0:02:22]} 11. h5 {[%clk 0:02:41.6]}
11... g5 {[%clk 0:02:13.3]} 12. f4 {[%clk 0:02:35.5]} 12... gxf4 {[%clk
0:01:57.5]} 13. Nxf4 {[%clk 0:02:34]} 13... Ngf6 {[%clk 0:01:57.4]} 14. d5
{[%clk 0:01:45.5]} 14... Nxg4 {[%clk 0:01:47.4]} 15. Bd4 {[%clk 0:01:45.5]}
15... Nge5 {[%clk 0:01:24.1]} 16. Nge2 {[%clk 0:01:38]} 16... Nc4 {[%clk
0:01:08.9]} 17. Qd3 {[%clk 0:01:37.6]} 17... Nde5 {[%clk 0:01:00.2]} 18. Qg3
{[%clk 0:01:27.6]} 18... Bf6 {[%clk 0:01:00]} 19. b3 {[%clk 0:01:24.8]} 19...
Na3 {[%clk 0:00:52.5]} 20. Rc1 {[%clk 0:01:07.6]} 20... c5 {[%clk 0:00:47.9]}
21. dxc6 {[%clk 0:00:57.1]} 21... Bxc6 {[%clk 0:00:48.1]} 22. c3 {[%clk
0:00:56.3]} 22... Qd7 {[%clk 0:00:39.6]} 23. cxb4 {[%clk 0:00:46.9]} 23... axb4
{[%clk 0:00:39.7]} 24. O-O {[%clk 0:00:30.3]} 24... Bg5 {[%clk 0:00:19.3]} 25.
Rcd1 {[%clk 0:00:16.1]} 25... Qb7 {[%clk 0:00:17.2]} 26. Nd5 {[%clk 0:00:15.3]}
26... Bxd5 {[%clk 0:00:16.6]} 27. exd5 {[%clk 0:00:14.7]} 27... Bf6 {[%clk
0:00:14.1]} 28. Rxf6 {[%clk 0:00:12.5]} 28... exf6 {[%clk 0:00:14]} 29. Bh3
{[%clk 0:00:12.6]} 29... Kf8 {[%clk 0:00:10.1]} 30. Rf1 {[%clk 0:00:10.4]} 30...
Rg8 {[%clk 0:00:09.9]} 0-1

[Event "Early-Titled-Tuesday-Blitz-May-14-2024"]
[Site "Chess.com"]
[Date "2024.05.14"]
[Round "8"]
[White "NMChessToImpress"]
[Black "MaxLeto"]
[Result "1-0"]
[WhiteElo "2274"]
[BlackElo "2397"]
[TimeControl "180+1"]
[EndTime "9:30:21 PDT"]
[Termination "NMChessToImpress won on time"]

1. e4 {[%clk 0:03:00.9]} 1... c5 {[%clk 0:02:59.5]} 2. Nf3 {[%clk 0:03:01.2]}
2... d6 {[%clk 0:02:59.2]} 3. d4 {[%clk 0:03:01.8]} 3... cxd4 {[%clk 0:03:00.1]}
4. Nxd4 {[%clk 0:03:02.5]} 4... Nf6 {[%clk 0:03:00.8]} 5. Nc3 {[%clk 0:03:03.1]}
5... a6 {[%clk 0:03:01.4]} 6. Be3 {[%clk 0:03:03.7]} 6... Ng4 {[%clk 0:03:01.6]}
7. Bg5 {[%clk 0:03:00.5]} 7... h6 {[%clk 0:03:02]} 8. Bh4 {[%clk 0:03:00.7]}
8... g5 {[%clk 0:03:02.6]} 9. Bg3 {[%clk 0:03:01.4]} 9... Bg7 {[%clk 0:03:03]}
10. h3 {[%clk 0:02:59.7]} 10... Ne5 {[%clk 0:03:02.5]} 11. Nf5 {[%clk 0:03:00]}
11... Bxf5 {[%clk 0:03:01.8]} 12. exf5 {[%clk 0:03:00.9]} 12... Qa5 {[%clk
0:02:58.1]} 13. Be2 {[%clk 0:02:55]} 13... Nec6 {[%clk 0:02:20.7]} 14. O-O
{[%clk 0:02:49.1]} 14... Bxc3 {[%clk 0:02:09.6]} 15. bxc3 {[%clk 0:02:50]} 15...
Qxf5 {[%clk 0:02:09.8]} 16. Rb1 {[%clk 0:02:40.7]} 16... b5 {[%clk 0:02:06.9]}
17. a4 {[%clk 0:02:34.5]} 17... bxa4 {[%clk 0:02:04.7]} 18. Rb7 {[%clk
0:02:07.1]} 18... Qc5 {[%clk 0:01:40.1]} 19. Bd3 {[%clk 0:01:42.3]} 19... Nd7
{[%clk 0:01:35.1]} 20. Re1 {[%clk 0:01:28.7]} 20... Nde5 {[%clk 0:01:33.4]} 21.
Qb1 {[%clk 0:01:15]} 21... Kf8 {[%clk 0:00:51.3]} 22. Rc7 {[%clk 0:01:00.3]}
22... Qa5 {[%clk 0:00:29.6]} 23. Bxe5 {[%clk 0:00:36]} 23... Nxe5 {[%clk
0:00:17.6]} 24. Qb7 {[%clk 0:00:32]} 24... Re8 {[%clk 0:00:11.5]} 25. Bxa6
{[%clk 0:00:31.9]} 25... a3 {[%clk 0:00:08.2]} 26. Bb5 {[%clk 0:00:30.3]} 26...
Kg7 {[%clk 0:00:05.2]} 27. Bxe8 {[%clk 0:00:28.5]} 27... Rxe8 {[%clk 0:00:06.1]}
28. Rxe7 {[%clk 0:00:23]} 28... Rxe7 {[%clk 0:00:02.1]} 29. Qxe7 {[%clk
0:00:22.7]} 29... Qxc3 {[%clk 0:00:02.3]} 30. Rf1 {[%clk 0:00:17.6]} 30... Qc5
{[%clk 0:00:02.2]} 31. Kh2 {[%clk 0:00:14.5]} 31... a2 {[%clk 0:00:01.4]} 32. f4
{[%clk 0:00:14.7]} 32... gxf4 {[%clk 0:00:00.8]} 33. Rxf4 {[%clk 0:00:14.9]} 1-0

[Event "Early-Titled-Tuesday-Blitz-May-14-2024"]
[Site "Chess.com"]
[Date "2024.05.14"]
[Round "8"]
[White "sterpfi"]
[Black "amanjazu"]
[Result "0-1"]
[WhiteElo "2322"]
[BlackElo "2524"]
[TimeControl "180+1"]
[EndTime "9:30:22 PDT"]
[Termination "amanjazu won by resignation"]

1. e4 {[%clk 0:03:00.9]} 1... Nf6 {[%clk 0:02:52.4]} 2. e5 {[%clk 0:03:00.4]}
2... Nd5 {[%clk 0:02:50.8]} 3. d4 {[%clk 0:03:01.1]} 3... d6 {[%clk 0:02:50.9]}
4. c4 {[%clk 0:03:00.7]} 4... Nb6 {[%clk 0:02:50.9]} 5. exd6 {[%clk 0:03:01.4]}
5... cxd6 {[%clk 0:02:51.8]} 6. Nc3 {[%clk 0:03:01.3]} 6... g6 {[%clk
0:02:52.3]} 7. Be3 {[%clk 0:03:01.5]} 7... Bg7 {[%clk 0:02:52.8]} 8. Rc1 {[%clk
0:03:02]} 8... O-O {[%clk 0:02:53.7]} 9. b3 {[%clk 0:03:02.2]} 9... Nc6 {[%clk
0:02:52.3]} 10. d5 {[%clk 0:02:50]} 10... Ne5 {[%clk 0:02:51.8]} 11. Be2 {[%clk
0:02:48.6]} 11... h5 {[%clk 0:02:51.3]} 12. h3 {[%clk 0:02:39.5]} 12... a5
{[%clk 0:02:39.6]} 13. f4 {[%clk 0:02:34.2]} 13... Ned7 {[%clk 0:02:38.8]} 14.
Nf3 {[%clk 0:02:34]} 14... a4 {[%clk 0:02:38.3]} 15. O-O {[%clk 0:02:23.6]}
15... axb3 {[%clk 0:02:34.8]} 16. axb3 {[%clk 0:02:23.3]} 16... Nc5 {[%clk
0:02:35.5]} 17. Nd4 {[%clk 0:02:13]} 17... e5 {[%clk 0:02:11.3]} 18. dxe6 {[%clk
0:02:03.7]} 18... fxe6 {[%clk 0:02:12.1]} 19. Qc2 {[%clk 0:01:52.1]} 19... e5
{[%clk 0:02:05.3]} 20. fxe5 {[%clk 0:01:37.3]} 20... dxe5 {[%clk 0:02:06.2]} 21.
Qxg6 {[%clk 0:00:50.6]} 21... exd4 {[%clk 0:01:47]} 22. Bh6 {[%clk 0:00:50.4]}
22... Ne6 {[%clk 0:01:40.2]} 23. Bd3 {[%clk 0:00:41.5]} 23... Rf6 {[%clk
0:01:17.4]} 24. Qh7+ {[%clk 0:00:23.4]} 24... Kf8 {[%clk 0:00:55.1]} 25. Bxg7+
{[%clk 0:00:16.7]} 25... Nxg7 {[%clk 0:00:50.6]} 26. Qh8+ {[%clk 0:00:15.3]}
26... Kf7 {[%clk 0:00:39.5]} 27. Qxd8 {[%clk 0:00:14.8]} 27... Bf5 {[%clk
0:00:38]} 28. Bxf5 {[%clk 0:00:13.4]} 28... Rxd8 {[%clk 0:00:37.3]} 29. Ne4
{[%clk 0:00:09.3]} 29... Rxf5 {[%clk 0:00:36.5]} 30. Rxf5+ {[%clk 0:00:07.5]}
30... Nxf5 {[%clk 0:00:37.4]} 31. c5 {[%clk 0:00:07.5]} 31... Nd5 {[%clk
0:00:35.9]} 32. c6 {[%clk 0:00:07.4]} 32... bxc6 {[%clk 0:00:35]} 33. Rxc6
{[%clk 0:00:08.3]} 33... d3 {[%clk 0:00:35.1]} 34. Kf2 {[%clk 0:00:04.7]} 34...
Re8 {[%clk 0:00:30.4]} 35. Nd2 {[%clk 0:00:03.9]} 35... Re2+ {[%clk 0:00:29.8]}
36. Kf3 {[%clk 0:00:04.6]} 36... Nd4+ {[%clk 0:00:29.9]} 37. Kg3 {[%clk
0:00:04.6]} 37... Nxc6 {[%clk 0:00:30.8]} 0-1

[Event "Early-Titled-Tuesday-Blitz-May-14-2024"]
[Site "Chess.com"]
[Date "2024.05.14"]
[Round "8"]
[White "KorolDimitriy75"]
[Black "klercaku"]
[Result "1-0"]
[WhiteElo "2410"]
[BlackElo "2255"]
[TimeControl "180+1"]
[EndTime "9:30:22 PDT"]
[Termination "KorolDimitriy75 won by resignation"]

1. d4 {[%clk 0:03:00]} 1... d5 {[%clk 0:02:59.7]} 2. c4 {[%clk 0:03:00.2]} 2...
e6 {[%clk 0:02:59.6]} 3. Nc3 {[%clk 0:03:01.1]} 3... Nf6 {[%clk 0:02:59.6]} 4.
Bg5 {[%clk 0:03:00.9]} 4... Nbd7 {[%clk 0:02:59.6]} 5. cxd5 {[%clk 0:03:01]}
5... exd5 {[%clk 0:03:00.5]} 6. e3 {[%clk 0:03:01.3]} 6... c6 {[%clk 0:03:00.8]}
7. Bd3 {[%clk 0:03:01.3]} 7... Be7 {[%clk 0:03:01.3]} 8. Qc2 {[%clk 0:03:01.5]}
8... O-O {[%clk 0:03:02]} 9. Nge2 {[%clk 0:03:01.3]} 9... Re8 {[%clk 0:03:02.6]}
10. f3 {[%clk 0:03:01.1]} 10... Nf8 {[%clk 0:03:03.2]} 11. O-O {[%clk
0:03:00.5]} 11... h6 {[%clk 0:03:03.6]} 12. Bh4 {[%clk 0:03:00.5]} 12... Ne6
{[%clk 0:03:04.3]} 13. Rad1 {[%clk 0:02:58.2]} 13... a6 {[%clk 0:03:03.9]} 14.
Bf2 {[%clk 0:02:56.2]} 14... Bd6 {[%clk 0:03:03.5]} 15. h3 {[%clk 0:02:55.7]}
15... Nh5 {[%clk 0:02:53]} 16. e4 {[%clk 0:02:55]} 16... dxe4 {[%clk 0:02:46.1]}
17. fxe4 {[%clk 0:02:55.9]} 17... Nhf4 {[%clk 0:02:39]} 18. e5 {[%clk
0:02:49.3]} 18... Nxd3 {[%clk 0:02:19.5]} 19. Qxd3 {[%clk 0:02:42.6]} 19... Bc7
{[%clk 0:02:16.4]} 20. Ng3 {[%clk 0:02:29.8]} 20... Nf4 {[%clk 0:02:08.8]} 21.
Qf3 {[%clk 0:02:28.8]} 21... Nd5 {[%clk 0:02:03.4]} 22. Nce4 {[%clk 0:02:02.6]}
22... Qe7 {[%clk 0:01:41]} 23. Nh5 {[%clk 0:01:56]} 23... Be6 {[%clk 0:01:29.1]}
24. Qg3 {[%clk 0:01:42.6]} 24... f5 {[%clk 0:00:51.8]} 25. Nc5 {[%clk
0:01:04.2]} 25... g6 {[%clk 0:00:42.3]} 26. Qxg6+ {[%clk 0:01:01.2]} 26... Kh8
{[%clk 0:00:33]} 27. Nxe6 {[%clk 0:00:44]} 27... Rg8 {[%clk 0:00:22.5]} 28.
Qxh6+ {[%clk 0:00:41.5]} 28... Qh7 {[%clk 0:00:19.3]} 29. Qxh7+ {[%clk
0:00:41.8]} 29... Kxh7 {[%clk 0:00:20.2]} 30. Nxc7 {[%clk 0:00:41.1]} 30... Nxc7
{[%clk 0:00:19.9]} 31. Nf6+ {[%clk 0:00:41.4]} 31... Kg6 {[%clk 0:00:20.1]} 32.
Nxg8 {[%clk 0:00:42.3]} 32... Rxg8 {[%clk 0:00:19.3]} 33. Kh2 {[%clk 0:00:41.1]}
33... Nd5 {[%clk 0:00:19]} 34. Rd3 {[%clk 0:00:40]} 34... f4 {[%clk 0:00:18.6]}
35. Rf3 {[%clk 0:00:37.7]} 35... Kf5 {[%clk 0:00:18.4]} 36. Bg3 {[%clk
0:00:29.3]} 36... Ke4 {[%clk 0:00:12.1]} 37. Rxf4+ {[%clk 0:00:24.9]} 37... Nxf4
{[%clk 0:00:10.4]} 38. Rxf4+ {[%clk 0:00:25.8]} 38... Ke3 {[%clk 0:00:11.3]} 39.
h4 {[%clk 0:00:19.4]} 1-0

[Event "Early-Titled-Tuesday-Blitz-May-14-2024"]
[Site "Chess.com"]
[Date "2024.05.14"]
[Round "8"]
[White "czechbul17"]
[Black "kanzaww"]
[Result "1-0"]
[WhiteElo "2237"]
[BlackElo "2503"]
[TimeControl "180+1"]
[EndTime "9:30:23 PDT"]
[Termination "czechbul17 won by resignation"]

1. d4 {[%clk 0:03:00.9]} 1... Nf6 {[%clk 0:02:57.4]} 2. Nf3 {[%clk 0:03:01.1]}
2... e6 {[%clk 0:02:57.1]} 3. c4 {[%clk 0:02:59.8]} 3... d5 {[%clk 0:02:56]} 4.
Nc3 {[%clk 0:03:00.3]} 4... Nbd7 {[%clk 0:02:46]} 5. Bg5 {[%clk 0:02:59.1]} 5...
Be7 {[%clk 0:02:40.6]} 6. e3 {[%clk 0:02:59]} 6... h6 {[%clk 0:02:40.9]} 7. Bh4
{[%clk 0:02:56.1]} 7... O-O {[%clk 0:02:41]} 8. Qc2 {[%clk 0:02:56.4]} 8... c5
{[%clk 0:02:36.9]} 9. O-O-O {[%clk 0:02:53]} 9... Qa5 {[%clk 0:02:16.3]} 10.
cxd5 {[%clk 0:02:49.2]} 10... Nxd5 {[%clk 0:02:15.6]} 11. Bxe7 {[%clk
0:02:41.7]} 11... Nxe7 {[%clk 0:02:16.5]} 12. Kb1 {[%clk 0:02:39.6]} 12... b6
{[%clk 0:02:06.4]} 13. Bd3 {[%clk 0:02:33]} 13... Nf6 {[%clk 0:02:04.1]} 14. Ne5
{[%clk 0:02:16.4]} 14... Bb7 {[%clk 0:02:03.1]} 15. Nc4 {[%clk 0:01:37.9]} 15...
Qa6 {[%clk 0:02:01.2]} 16. Nd6 {[%clk 0:01:35.9]} 16... b5 {[%clk 0:02:01.6]}
17. dxc5 {[%clk 0:01:34]} 17... Bc6 {[%clk 0:01:52.1]} 18. Ncxb5 {[%clk
0:01:30.6]} 18... Rab8 {[%clk 0:01:49.2]} 19. a4 {[%clk 0:01:19]} 19... Nfd5
{[%clk 0:01:42.2]} 20. Nd4 {[%clk 0:00:59.2]} 20... Qxa4 {[%clk 0:01:37.7]} 21.
Qxa4 {[%clk 0:00:57.2]} 21... Bxa4 {[%clk 0:01:38.6]} 22. Rd2 {[%clk 0:00:57.9]}
22... Nc6 {[%clk 0:01:33.1]} 23. Bc2 {[%clk 0:00:51.5]} 23... Bxc2+ {[%clk
0:01:29.9]} 24. Kxc2 {[%clk 0:00:51.9]} 24... Ncb4+ {[%clk 0:01:23.4]} 25. Kb1
{[%clk 0:00:52.1]} 25... a5 {[%clk 0:01:22.5]} 26. Rc1 {[%clk 0:00:47]} 26... e5
{[%clk 0:01:15.6]} 27. Nc6 {[%clk 0:00:41]} 27... Nxc6 {[%clk 0:01:14.4]} 28.
Rxd5 {[%clk 0:00:41.4]} 28... a4 {[%clk 0:01:11.5]} 29. Nc4 {[%clk 0:00:38.8]}
29... f6 {[%clk 0:01:04.8]} 30. Nb6 {[%clk 0:00:38.8]} 30... Nb4 {[%clk
0:00:56]} 31. Rd6 {[%clk 0:00:36]} 31... Rf7 {[%clk 0:00:51.9]} 32. Rc4 {[%clk
0:00:24.6]} 32... Na6 {[%clk 0:00:50.5]} 33. Nxa4 {[%clk 0:00:21.4]} 33... Rc7
{[%clk 0:00:50.6]} 34. Rxa6 {[%clk 0:00:21.3]} 34... Rd8 {[%clk 0:00:47.8]} 35.
Nc3 {[%clk 0:00:18]} 35... Rd2 {[%clk 0:00:46.5]} 36. Ne4 {[%clk 0:00:17.9]}
36... Re2 {[%clk 0:00:45.7]} 37. Rc2 {[%clk 0:00:18]} 37... Re1+ {[%clk
0:00:45.4]} 38. Ka2 {[%clk 0:00:18.4]} 38... f5 {[%clk 0:00:45.6]} 39. Ng3
{[%clk 0:00:17.9]} 39... f4 {[%clk 0:00:45.8]} 40. exf4 {[%clk 0:00:17.3]} 40...
exf4 {[%clk 0:00:46.7]} 41. Nh5 {[%clk 0:00:17]} 41... Re4 {[%clk 0:00:40.8]}
42. Rg6 {[%clk 0:00:15.7]} 42... Kh7 {[%clk 0:00:39.1]} 43. Rxg7+ {[%clk
0:00:14.1]} 43... Rxg7 {[%clk 0:00:39.3]} 44. Nf6+ {[%clk 0:00:15]} 44... Kg6
{[%clk 0:00:40]} 45. Nxe4 {[%clk 0:00:15.8]} 45... Kf5 {[%clk 0:00:40.7]} 46. f3
{[%clk 0:00:16.1]} 46... Ra7+ {[%clk 0:00:40.4]} 47. Kb1 {[%clk 0:00:16.3]}
47... Rc7 {[%clk 0:00:40.5]} 48. b4 {[%clk 0:00:16.7]} 48... Ke5 {[%clk
0:00:41.2]} 49. b5 {[%clk 0:00:16.7]} 49... Kd4 {[%clk 0:00:41.5]} 50. b6 {[%clk
0:00:16.7]} 50... Rb7 {[%clk 0:00:41.6]} 51. Kc1 {[%clk 0:00:17.2]} 1-0

[Event "Early-Titled-Tuesday-Blitz-May-14-2024"]
[Site "Chess.com"]
[Date "2024.05.14"]
[Round "8"]
[White "Raskolnikov6"]
[Black "Artemiki"]
[Result "0-1"]
[WhiteElo "2442"]
[BlackElo "2613"]
[TimeControl "180+1"]
[EndTime "9:30:24 PDT"]
[Termination "Artemiki won by resignation"]

1. c4 {[%clk 0:03:00.9]} 1... c5 {[%clk 0:02:57.6]} 2. g3 {[%clk 0:03:00.8]}
2... Nc6 {[%clk 0:02:57.6]} 3. Bg2 {[%clk 0:03:01.4]} 3... g6 {[%clk 0:02:57.9]}
4. Nc3 {[%clk 0:03:00.3]} 4... Bg7 {[%clk 0:02:57.6]} 5. Nf3 {[%clk 0:03:00.9]}
5... Nf6 {[%clk 0:02:58]} 6. O-O {[%clk 0:02:59.9]} 6... d6 {[%clk 0:02:58.7]}
7. d4 {[%clk 0:03:00]} 7... cxd4 {[%clk 0:02:56.1]} 8. Nxd4 {[%clk 0:02:59.9]}
8... Bd7 {[%clk 0:02:56.2]} 9. Nc2 {[%clk 0:02:58.7]} 9... h5 {[%clk 0:02:53.1]}
10. Bg5 {[%clk 0:02:54.8]} 10... Qc8 {[%clk 0:02:52.3]} 11. Rc1 {[%clk
0:02:48.1]} 11... Bh3 {[%clk 0:02:50.1]} 12. Bxh3 {[%clk 0:02:36.2]} 12... Qxh3
{[%clk 0:02:48.7]} 13. Bxf6 {[%clk 0:02:36.8]} 13... Bxf6 {[%clk 0:02:47.2]} 14.
Nd5 {[%clk 0:02:36.1]} 14... h4 {[%clk 0:01:59.7]} 15. Nxf6+ {[%clk 0:02:22.1]}
15... Kf8 {[%clk 0:01:23.3]} 16. Qd3 {[%clk 0:02:17.2]} 16... Ne5 {[%clk
0:01:11.3]} 17. Qa3 {[%clk 0:02:05.5]} 17... exf6 {[%clk 0:01:05.1]} 18. gxh4
{[%clk 0:00:07.9]} 18... Qxh4 {[%clk 0:00:45.5]} 19. Qg3 {[%clk 0:00:07.8]}
19... Qe4 {[%clk 0:00:45.3]} 20. Ne3 {[%clk 0:00:06.2]} 20... f5 {[%clk
0:00:18.5]} 21. f4 {[%clk 0:00:06.3]} 21... Nc6 {[%clk 0:00:19]} 22. Rcd1 {[%clk
0:00:05.7]} 22... Nd4 {[%clk 0:00:18.2]} 23. Rf2 {[%clk 0:00:03.6]} 23... Re8
{[%clk 0:00:16]} 24. Rd3 {[%clk 0:00:03.8]} 24... Ne6 {[%clk 0:00:12]} 25. b3
{[%clk 0:00:03.2]} 25... Nc5 {[%clk 0:00:12.4]} 26. Rd2 {[%clk 0:00:02.5]} 26...
Qxe3 {[%clk 0:00:12.3]} 27. Qxe3 {[%clk 0:00:02.5]} 27... Rxe3 {[%clk
0:00:13.1]} 28. Rxd6 {[%clk 0:00:03.4]} 28... Kg7 {[%clk 0:00:11.4]} 29. Rd5
{[%clk 0:00:03.8]} 29... Ne4 {[%clk 0:00:11.6]} 30. Rg2 {[%clk 0:00:03.1]} 30...
Rc3 {[%clk 0:00:11.7]} 31. e3 {[%clk 0:00:02.5]} 31... Rc1+ {[%clk 0:00:11.5]}
0-1